Workbook

Sheet Uitleg

Sheet Invulblad en resultaten
B1: GGD Rekentool Luchtkwaliteit & Gezondheid - Invulblad en resultaten
B3: Vul in het aantal bewoners : | E3: 17407585 | F3: Check op representativiteit!
B5: Vink de stoffen aan waarmee je wilt rekenen en vul vervolgens
B6: de blootstelling in (gebruik de schuifbalk of pijltjes) | I6: Vroegtijdige sterfte in dagen | Q6: Daling longcapaciteit kinderen 0-18 jaar (FEV1) in % (PM2,5 en NO2)
E7: =IF(AND(B8=FALSE,B11=FALSE),"onjuiste invoer, of PM10 of PM2,5 of beide aanvinken",IF(B8=TRUE,$E$8*0.1,E11/0.59)) -> 15 | I7: One-pollutant model | N7: Two-pollutant model
B8: TRUE | C8: PM10 | E8: 150 | I8: (WHO Air Quality Guidelines, 2021) | N8: (DUELS, 2015)
R9: =ROUND(Rekenblad!B26*100,1) -> 0.8
I10: =Rekenblad!B36 -> 125 | K10: =Rekenblad!B35 -> 189 | M10: =Rekenblad!B37 -> 63 | O10: =Rekenblad!B31 -> 261 | R10: =ROUND(Rekenblad!B27*100,1) -> 0.7
B11: TRUE | E11: =IF(AND(B8=FALSE,B11=FALSE),"onjuiste invoer, of PM10 of PM2,5 of beide aanvinken",IF(B11=TRUE,$E$12*0.1,E7*0.59)) -> 5
C12: PM2,5 | E12: 50
B14: TRUE
E15: =IF(B14=TRUE,$E$16*0.1,0) -> 10
C16: NO2 | E16: 100
B17: TRUE
B20: Aandeel ziektelast als % van het totaal aantal gevallen (b.v. van alle gevallen van longkanker per jaar wordt x% veroorzaakt door luchtverontreiniging) | Q20: Indicator | R20: Ziektelast | W20: Cases per jaar
Q21: PM2,5 | R21: Laag geboortegewicht (0-1) | W21: =Rekenmodel!E8 -> 371.2145667
Q22: NO2 | R22: Incidentie astma kinderen (0-18) | W22: =Rekenmodel!E9 -> 3450.435784
Q23: PM2,5 | R23: Incidentie hartvaatziekten (totaal) (40+) | W23: =Rekenmodel!E10 -> 20517.51224
Q24: NO2 | R24: Incidentie hartvaatziekten (totaal) (40+) | W24: =Rekenmodel!E11 -> 63456.52174
Q25: PM2,5 | R25: Longkanker (50+) | W25: =Rekenmodel!E12 -> 850.9843318
Q26: PM2,5 | R26: Ziekenhuisopnames astma (alle leeftijden) | W26: =Rekenmodel!E13 -> 83.5465529
Q27: PM2,5 | R27: Ziekenhuisopnames COPD (alle leeftijden) | W27: =Rekenmodel!E14 -> 409.3406558
Q28: NO2 | R28: Ziekenhuisopnames astma (alle leeftijden) | W28: =Rekenmodel!E15 -> 102.0315582
Q29: NO2 | R29: Ziekenhuisopnames ischemische hartziekten (40+) | W29: =Rekenmodel!E16 -> 769.6600791
Q32: Aantal meegerookte sigaretten per dag (op basis van PM2,5 en NO2)
Q34: =ROUND(Meerookmethode!G9,1) -> 2.4

Sheet Rekenblad (hidden)
A1: GEEL=VERWIJZING INVULBLAD EN RESULTATEN | B1: 2019
A2: GROEN=RESULTATEN ZIEKTELAST
A3: ORANJE=RESULTATEN VROEGTIJDIG OVERLIJDEN
A5: Totaal aantal inwoners waarop de berekening betrekking heeft | B5: ='Invulblad en resultaten'!E3 -> 17407585 | C5: Bevolking 1-1-2020
A6: Welk verschil in PM10 concentratie wil je doorrekenen? | B6: ='Invulblad en resultaten'!E7 -> 15 | C6: Bevolkingsgewogen gemiddelde
A7: Welk verschil in PM2,5 concentratie wil je doorrekenen? | B7: ='Invulblad en resultaten'!E11 -> 5 | C7: Bevolkingsgewogen gemiddelde
A8: Op welk verschil in NO2 concentratie heeft de berekening van levensduur betrekking? | B8: ='Invulblad en resultaten'!E15 -> 10 | C8: Bevolkingsgewogen gemiddelde
A11: Ziektelast | B11: Attributieve cases / ziektelast * | C11: Aandeel ziektelast door PM2,5 **
A12: Laag geboortegewicht (0-1) - PM2,5 | B12: =Rekenmodel!E8 -> 371.2145667 | C12: =Rekenmodel!F8 -> 0.03819472854
A13: Incidentie astma kinderen (0-18) - NO2 | B13: =Rekenmodel!E9 -> 3450.435784 | C13: =Rekenmodel!F9 -> 0.1142604074
A14: Incidentie hartvaatziekten (totaal) (40+) - PM2,5 | B14: =Rekenmodel!E10 -> 20517.51224 | C14: =Rekenmodel!F10 -> 0.04217371478
A15: Incidentie hartvaatziekten (totaal) (40+) - NO2 | B15: =Rekenmodel!E11 -> 63456.52174 | C15: =Rekenmodel!F11 -> 0.1304347826
A16: Longkanker (50+) - PM2,5 | B16: =Rekenmodel!E12 -> 850.9843318 | C16: =Rekenmodel!F12 -> 0.07152330911
A17: Ziekenhuisopnames astma (alle leeftijden) - PM2,5 | B17: =Rekenmodel!E13 -> 83.5465529 | C17: =Rekenmodel!F13 -> 0.01130535222
A18: Ziekenhuisopnames COPD (alle leeftijden) - PM2,5 | B18: =Rekenmodel!E14 -> 409.3406558 | C18: =Rekenmodel!F14 -> 0.01227040335
A19: Ziekenhuisopnames astma (alle leeftijden) - NO2 | B19: =Rekenmodel!E15 -> 102.0315582 | C19: =Rekenmodel!F15 -> 0.01380670611
A20: Ziekenhuisopnames ischemische hartziekten (40+) - NO2 | B20: =Rekenmodel!E16 -> 769.6600791 | C20: =Rekenmodel!F16 -> 0.01185770751
A22: *) Absoluut aantal gevallen door luchtverontreiniging, bijvoorbeeld een x aantal mensen per jaar met longkanker door luchtverontreiniging
A23: **) Percentage van het totaal aantal gevallen, bijvoorbeeld van alle gevallen longkanker per jaar wordt x procent veroorzaakt door luchtverontreiniging
B25: Percentage afname FEV1
A26: FEV1 daling kinderen (0-18 jaar) in procenten - PM2,5 | B26: =Rekenmodel!E19 -> 0.008
A27: FEV1 daling kinderen (0-18 jaar) in procenten - NO2 | B27: =Rekenmodel!E20 -> 0.007
A29: Vroegtijdig overlijden | B29: Vroegtijdig overlijden
A30: Vroegtijdig overlijden two pollutant model:
A31: Vroegtijdig overlijden (totale sterfte) >30 jaar in dagen door PM10 en NO2 | B31: =ROUND(Rekenmodel!E25,0) -> 261
A33: Vroegtijdig overlijden one pollutant model (als je geen PM10/2,5 én NO2 concentraties hebt):
A34: Zie voor toelichting in begeleidende rapportage welke component je in jouw geval kunt gebruiken
A35: Vroegtijdig overlijden (totale sterfte) >30 jaar in dagen door PM10 | B35: =ROUND(Rekenmodel!E28,0) -> 189
A36: Vroegtijdig overlijden (totale sterfte) >30 jaar in dagen door PM2,5 | B36: =ROUND(Rekenmodel!E29,0) -> 125
A37: Vroegtijdig overlijden (totale sterfte) >30 jaar in dagen door NO2 | B37: =ROUND(Rekenmodel!E30,0) -> 63
A40: Let op: Je mag in geen geval het vroegtijdig overlijden (in dagen) van bovenstaande berekeningen bij elkaar optellen. Je moet kiezen uit één van de getallen in de oranje vakjes

Sheet Rekenmodel (hidden)
A2: Totaal aantal inwoners waarop de berekening betrekking heeft | B2: ='Invulblad en resultaten'!E3 -> 17407585
A3: Welk verschil in PM10 concentratie wil je doorrekenen? | B3: =IF(Rekenblad!B6="","",Rekenblad!B6) -> 15
A4: Welk verschil in PM2.5 concentratie wil je doorrekenen? | B4: =IF(Rekenblad!B7="","",Rekenblad!B7) -> 5
A5: =IF(Rekenblad!A8="","",Rekenblad!A8) -> Op welk verschil in NO2 concentratie heeft de berekening van levensduur betrekking? | B5: =IF(Rekenblad!B8="","",Rekenblad!B8) -> 10
A7: Ziektelast | C7: Populatie at risk | D7: Incidentie | E7: Attributieve cases / ziektelast | F7: Aandeel ziektelast door PM10/PM2.5/NO2 | H7: RR voor PM10 (per 10 ug/m3) | I7: RR voor PM2.5 (per 10 ug/m3) | J7: RR voor NO2 (per 10 ug/m3) | K7: beta per 1 ug/m3 PM2.5 | L7: beta voor 1 ug/m3 PM10 | M7: beta voor 1 ug/m3 NO2 | N7: RR behorend bij delta PM2.5 | O7: RR behorend bij delta NO2 | P7: RR behorend bij delta PM10 | Q7: Attributieve cases door PM2.5 | R7: Attributieve cases door NO2 | T7: Attributieve cases door PM10 | U7: Bron effectschatting | V7: Incidentie/prevalentie 2019 | W7: Bron incidentie/prevalentie
A8: Laag geboortegewicht (0-1) | B8: PM2.5 | C8: =($B$2/'Leeftijdsopbouw NL 2019'!I4)*'Leeftijdsopbouw NL 2019'!I5 -> 169497 | D8: =($B$2/17407585)*9719 -> 9719 | E8: =Q8 -> 371.2145667 | F8: =E8/D8 -> 0.03819472854 | I8: 1.081 | K8: =LN(I8)/10 -> 0.007788653866 | N8: =IF($B$4="","",EXP($B$4*$K8)) -> 1.039711498 | Q8: =((N8-1)/N8)*$D8 -> 371.2145667 | U8: Li et al., 2020 | V8: Incidentie (0-1 jarigen): 9719 | W8: RIVM-VTV, data 2019
A9: Incidentie astma kinderen (0-18) | B9: NO2 | C9: =($B$2/'Leeftijdsopbouw NL 2019'!I4)*SUM('Leeftijdsopbouw NL 2019'!$I$5:$I$25) -> 3997789 | D9: =($B$2/17407585)*30198 -> 30198 | E9: =R9 -> 3450.435784 | F9: 0.1142604074 | J9: 1.129 | M9: =LN(J9)/10 -> 0.01213322852 | O9: =IF($B$5="","",EXP($B$5*M9)) -> 1.129 | R9: =((O9-1)/O9)*D9 -> 3450.435784 | U9: Khreis, H. et al, 2017 | V9: Incidentie (0-20 jarigen): 30198 | W9: RIVM-VTV, data 2019
A10: Incidentie hartvaatziekten (totaal) volwassenen (40+) | B10: PM2.5 | C10: =($B$2/'Leeftijdsopbouw NL 2019'!I4)*SUM('Leeftijdsopbouw NL 2019'!I45:I104) -> 9250847 | D10: =($B$2/17407585)*486500 -> 486500 | E10: =Q10 -> 20517.51224 | F10: 0.04217371478 | I10: 1.09 | K10: =LN(I10)/10 -> 0.008617769624 | N10: =IF($B$4="","",EXP($B$4*$K10)) -> 1.044030651 | Q10: =((N10-1)/N10)*$D10 -> 20517.51224 | U10: Pranata et al., 2020 | V10: Incidentie (40+): 486.500 | W10: Data NIVEL 2019 via Volksgezondheidenzorg.info
A11: Incidentie hartvaatziekten (totaal) volwassenen (40+) | B11: NO2 | C11: =($B$2/'Leeftijdsopbouw NL 2019'!I4)*SUM('Leeftijdsopbouw NL 2019'!I45:I104) -> 9250847 | D11: =($B$2/17407585)*486500 -> 486500 | E11: =R11 -> 63456.52174 | F11: =E11/D11 -> 0.1304347826 | J11: 1.15 | M11: =LN(J11)/10 -> 0.01397619424 | O11: =IF($B$5="","",EXP($B$5*$M11)) -> 1.15 | R11: =((O11-1)/O11)*$D11 -> 63456.52174 | U11: Pranata et al., 2020 | V11: Incidentie (40+): 486.500 | W11: Data NIVEL 2019 via Volksgezondheidenzorg.info
A12: Longkanker (50+) | B12: PM2.5 | C12: =($B$2/'Leeftijdsopbouw NL 2019'!I4)*SUM('Leeftijdsopbouw NL 2019'!I55:I104) -> 7042771 | D12: =($B$2/17407585)*11898 -> 11898 | E12: =Q12 -> 850.9843318 | F12: =E12/D12 -> 0.07152330911 | I12: 1.16 | K12: =LN(I12)/10 -> 0.01484200051 | N12: =IF($B$4="","",EXP($B$4*$K12)) -> 1.077032961 | Q12: =((N12-1)/N12)*$D12 -> 850.9843318 | U12: Cibattini et al., 2020 | V12: Incidentie (50+): 11.898 | W12: RIVM-VTV, data 2019
A13: Ziekenhuisopnames astma (alle leeftijden) | B13: PM2.5 | C13: =$B$2 -> 17407585 | D13: =($B$2/17407585)*7390 -> 7390 | E13: =Q13 -> 83.5465529 | F13: 0.01130535222 | I13: 1.023 | K13: =LN(I13)/10 -> 0.002273948697 | N13: =IF($B$4="","",EXP($B$4*$K13)) -> 1.011434625 | Q13: =(N13-1)/N13*$D13 -> 83.5465529 | U13: Zheng et al., 2015 | V13: Incidentie (alle leeftijden): 7390 | W13: CBS Staline, VTV indeling, astma, data 2019
A14: Ziekenhuisopnames COPD (alle leeftijden) | B14: PM2.5 | C14: =$B$2 -> 17407585 | D14: =($B$2/17407585)*33360 -> 33360 | E14: =Q14 -> 409.3406558 | F14: 0.01227040335 | I14: 1.025 | K14: =LN(I14)/10 -> 0.002469261259 | N14: =IF($B$4="","",EXP($B$4*$K14)) -> 1.012422837 | Q14: =((N14-1)/N14)*$D14 -> 409.3406558 | U14: Zhu et al., 2020 | V14: Incidentie (alle leeftijden): 33.360 | W14: CBS Staline, VTV indeling, COPD, data 2019
A15: Ziekenhuisopnames astma (alle leeftijden) | B15: NO2 | C15: =$B$2 -> 17407585 | D15: =($B$2/17407585)*7390 -> 7390 | E15: =R15 -> 102.0315582 | F15: 0.01380670611 | J15: 1.014 | M15: =LN(J15)/10 -> 0.001390290517 | O15: =IF($B$5="","",EXP($B$5*M15)) -> 1.014 | R15: =((O15-1)/O15)*D15 -> 102.0315582 | U15: Zheng et al., 2021 | V15: Incidentie (alle leeftijden): 7390 | W15: CBS Staline, VTV indeling, astma, data 2019
A16: Ziekenhuisopnames ischemische hartziekten (40+) | B16: NO2 | C16: =($B$2/'Leeftijdsopbouw NL 2019'!I4)*SUM('Leeftijdsopbouw NL 2019'!I45:I104) -> 9250847 | D16: =($B$2/17407585)*64908 -> 64908 | E16: =R16 -> 769.6600791 | F16: 0.01185770751 | J16: 1.012 | M16: =LN(J16)/10 -> 0.001192857087 | O16: =IF($B$5="","",EXP($B$5*M16)) -> 1.012 | R16: =((O16-1)/O16)*D16 -> 769.6600791 | U16: Stieb et al., 2020 | V16: Incidentie (40+): 64.908 | W16: Hartstichting 2020, data 2019
C18: Populatie at risk | E18: Percentage afname FEV1 | I18: Daling in FEV1 voor PM2,5 (per 10 µg/m³) | U18: idem | V18: idem | W18: idem
A19: FEV1 daling kinderen (0-18 jaar) in procenten | B19: PM2.5 | C19: =($B$2/'Leeftijdsopbouw NL 2019'!I4)*SUM('Leeftijdsopbouw NL 2019'!$I$5:$I$25) -> 3997789 | E19: =IF($B$4="","",(I19/10)*$B$4) -> 0.008 | I19: 0.016 | U19: Gehring, 2021 | V19: 1,6% daling per 10 µg/m³ PM2,5 | W19: nvt
A20: FEV1 daling kinderen (0-18 jaar) in procenten | B20: NO2 | C20: =($B$2/'Leeftijdsopbouw NL 2019'!I4)*SUM('Leeftijdsopbouw NL 2019'!$I$5:$I$25) -> 3997789 | E20: =IF($B$4="","",(J20/10)*$B$5) -> 0.007 | J20: 0.007 | U20: Gehring, 2021 | V20: 0,7% daling per 10 µg/m³ NO2 | W20: nvt
A21: Vroegtijdig overlijden | C21: Populatie at risk | E21: Vroegtijdig overlijden | H21: Aantal dagen vroegtijdig overlijden (per 10µg/m³)
A22: Vroegtijdig overlijden two pollutant model:
A23: Totale sterfte (afname in levensverwachting) >30 jaar in dagen door PM10 | B23: PM10 | C23: =($B$2/'Leeftijdsopbouw NL 2019'!I4)*SUM('Leeftijdsopbouw NL 2019'!$I$35:$I$104) -> 11398778 | E23: =(H23/10)*$B$3 -> 201 | H23: 134 | U23: Fischer 2015 | V23: Bevolking 30 jaar en ouder
A24: Totale sterfte (afname in levensverwachting) >30 jaar in dagen door NO2 | B24: NO2 | C24: =($B$2/'Leeftijdsopbouw NL 2019'!I4)*SUM('Leeftijdsopbouw NL 2019'!$I$35:$I$104) -> 11398778 | E24: =IF($B$5="","",(H24/10)*$B$5) -> 60 | H24: 60 | U24: Fischer 2015 | V24: Bevolking 30 jaar en ouder
A25: Totale sterfte (afname in levensverwachting) >30 jaar in dagen door PM10 en NO2 (two-pollutant model) | B25: PM10 en NO2 | C25: =($B$2/'Leeftijdsopbouw NL 2019'!I4)*SUM('Leeftijdsopbouw NL 2019'!$I$35:$I$104) -> 11398778 | E25: =E23+E24 -> 261 | H25: =H23+H24 -> 194 | U25: Fischer 2015 | V25: Bevolking 30 jaar en ouder
A27: Vroegtijdig overlijden one pollutant model (als je geen PM10/2,5 én NO2 concentraties hebt):
A28: Totale sterfte (afname in levensverwachting) >30 jaar in dagen door PM10 (one pollutant model) | B28: PM10 | C28: =($B$2/'Leeftijdsopbouw NL 2019'!I4)*SUM('Leeftijdsopbouw NL 2019'!$I$35:$I$104) -> 11398778 | E28: =(B3/10)*H28 -> 189 | H28: 126 | U28: Cheng & Hoek, 2020 | V28: Bevolking 30 jaar en ouder
A29: Totale sterfte (afname in levensverwachting) >30 jaar in dagen door PM2,5 (one pollutant model) | B29: PM2,5 | C29: =($B$2/'Leeftijdsopbouw NL 2019'!I4)*SUM('Leeftijdsopbouw NL 2019'!$I$35:$I$104) -> 11398778 | E29: =(B4/10)*H29 -> 124.5 | H29: 249 | U29: Cheng & Hoek, 2020 | V29: Bevolking 30 jaar en ouder
A30: Totale sterfte (afname in levensverwachting) >30 jaar in dagen door NO2 (one pollutant model) | B30: NO2 | C30: =($B$2/'Leeftijdsopbouw NL 2019'!I4)*SUM('Leeftijdsopbouw NL 2019'!$I$35:$I$104) -> 11398778 | E30: =(B5/10)*H30 -> 63 | H30: 63 | U30: Huangfu & Atkinson, 2020 | V30: Bevolking 30 jaar en ouder

Sheet Leeftijdsopbouw NL 2019 (hidden)
A1: Bevolking; geslacht en leeftijd op 1 januari 2020
A2: Statline | G2: NL populatie 2019 M+V | I2: 17407585
A3: 2020-01-01
A4: Mannen | B4: Totaal mannen | C4: 8648031 | D4: Vrouwen | E4: Totaal vrouwen | F4: 8759554 | G4: Totaal | H4: Totaal M+V | I4: 17407585
B5: 0 jaar | C5: 86780 | E5: 0 jaar | F5: 82717 | H5: 0 jaar | I5: 169497
B6: 1 jaar | C6: 86936 | E6: 1 jaar | F6: 82982 | H6: 1 jaar | I6: 169918
B7: 2 jaar | C7: 88224 | E7: 2 jaar | F7: 83727 | H7: 2 jaar | I7: 171951
B8: 3 jaar | C8: 89877 | E8: 3 jaar | F8: 85442 | H8: 3 jaar | I8: 175319
B9: 4 jaar | C9: 89678 | E9: 4 jaar | F9: 85109 | H9: 4 jaar | I9: 174787
B10: 5 jaar | C10: 91715 | E10: 5 jaar | F10: 87866 | H10: 5 jaar | I10: 179581
B11: 6 jaar | C11: 90538 | E11: 6 jaar | F11: 85677 | H11: 6 jaar | I11: 176215
B12: 7 jaar | C12: 92757 | E12: 7 jaar | F12: 88212 | H12: 7 jaar | I12: 180969
B13: 8 jaar | C13: 94859 | E13: 8 jaar | F13: 89928 | H13: 8 jaar | I13: 184787
B14: 9 jaar | C14: 97000 | E14: 9 jaar | F14: 92871 | H14: 9 jaar | I14: 189871
B15: 10 jaar | C15: 97716 | E15: 10 jaar | F15: 92865 | H15: 10 jaar | I15: 190581
B16: 11 jaar | C16: 98121 | E16: 11 jaar | F16: 93080 | H16: 11 jaar | I16: 191201
B17: 12 jaar | C17: 95795 | E17: 12 jaar | F17: 91838 | H17: 12 jaar | I17: 187633
B18: 13 jaar | C18: 97984 | E18: 13 jaar | F18: 92965 | H18: 13 jaar | I18: 190949
B19: 14 jaar | C19: 98734 | E19: 14 jaar | F19: 94106 | H19: 14 jaar | I19: 192840
B20: 15 jaar | C20: 101456 | E20: 15 jaar | F20: 97121 | H20: 15 jaar | I20: 198577
B21: 16 jaar | C21: 105340 | E21: 16 jaar | F21: 100080 | H21: 16 jaar | I21: 205420
B22: 17 jaar | C22: 106095 | E22: 17 jaar | F22: 101054 | H22: 17 jaar | I22: 207149
B23: 18 jaar | C23: 109193 | E23: 18 jaar | F23: 104330 | H23: 18 jaar | I23: 213523
B24: 19 jaar | C24: 114144 | E24: 19 jaar | F24: 110345 | H24: 19 jaar | I24: 224489
B25: 20 jaar | C25: 113176 | E25: 20 jaar | F25: 109356 | H25: 20 jaar | I25: 222532
B26: 21 jaar | C26: 112662 | E26: 21 jaar | F26: 108989 | H26: 21 jaar | I26: 221651
B27: 22 jaar | C27: 109312 | E27: 22 jaar | F27: 106985 | H27: 22 jaar | I27: 216297
B28: 23 jaar | C28: 110236 | E28: 23 jaar | F28: 106212 | H28: 23 jaar | I28: 216448
B29: 24 jaar | C29: 110279 | E29: 24 jaar | F29: 107378 | H29: 24 jaar | I29: 217657
B30: 25 jaar | C30: 114006 | E30: 25 jaar | F30: 110507 | H30: 25 jaar | I30: 224513
B31: 26 jaar | C31: 114184 | E31: 26 jaar | F31: 110803 | H31: 26 jaar | I31: 224987
B32: 27 jaar | C32: 115804 | E32: 27 jaar | F32: 111847 | H32: 27 jaar | I32: 227651
B33: 28 jaar | C33: 116870 | E33: 28 jaar | F33: 113466 | H33: 28 jaar | I33: 230336
B34: 29 jaar | C34: 117735 | E34: 29 jaar | F34: 113743 | H34: 29 jaar | I34: 231478
B35: 30 jaar | C35: 113052 | E35: 30 jaar | F35: 111015 | H35: 30 jaar | I35: 224067
B36: 31 jaar | C36: 112150 | E36: 31 jaar | F36: 109417 | H36: 31 jaar | I36: 221567
B37: 32 jaar | C37: 112141 | E37: 32 jaar | F37: 108871 | H37: 32 jaar | I37: 221012
B38: 33 jaar | C38: 110858 | E38: 33 jaar | F38: 109414 | H38: 33 jaar | I38: 220272
B39: 34 jaar | C39: 108465 | E39: 34 jaar | F39: 106720 | H39: 34 jaar | I39: 215185
B40: 35 jaar | C40: 106816 | E40: 35 jaar | F40: 104792 | H40: 35 jaar | I40: 211608
B41: 36 jaar | C41: 103411 | E41: 36 jaar | F41: 102283 | H41: 36 jaar | I41: 205694
B42: 37 jaar | C42: 103678 | E42: 37 jaar | F42: 102457 | H42: 37 jaar | I42: 206135
B43: 38 jaar | C43: 104855 | E43: 38 jaar | F43: 104932 | H43: 38 jaar | I43: 209787
B44: 39 jaar | C44: 106437 | E44: 39 jaar | F44: 106167 | H44: 39 jaar | I44: 212604
B45: 40 jaar | C45: 102613 | E45: 40 jaar | F45: 102787 | H45: 40 jaar | I45: 205400
B46: 41 jaar | C46: 102353 | E46: 41 jaar | F46: 102998 | H46: 41 jaar | I46: 205351
B47: 42 jaar | C47: 100590 | E47: 42 jaar | F47: 101643 | H47: 42 jaar | I47: 202233
B48: 43 jaar | C48: 101906 | E48: 43 jaar | F48: 101926 | H48: 43 jaar | I48: 203832
B49: 44 jaar | C49: 101960 | E49: 44 jaar | F49: 103232 | H49: 44 jaar | I49: 205192
B50: 45 jaar | C50: 106340 | E50: 45 jaar | F50: 107835 | H50: 45 jaar | I50: 214175
B51: 46 jaar | C51: 109926 | E51: 46 jaar | F51: 111471 | H51: 46 jaar | I51: 221397
B52: 47 jaar | C52: 118629 | E52: 47 jaar | F52: 120512 | H52: 47 jaar | I52: 239141
B53: 48 jaar | C53: 125116 | E53: 48 jaar | F53: 125298 | H53: 48 jaar | I53: 250414
B54: 49 jaar | C54: 130430 | E54: 49 jaar | F54: 130511 | H54: 49 jaar | I54: 260941
B55: 50 jaar | C55: 133557 | E55: 50 jaar | F55: 132630 | H55: 50 jaar | I55: 266187
B56: 51 jaar | C56: 127742 | E56: 51 jaar | F56: 127180 | H56: 51 jaar | I56: 254922
B57: 52 jaar | C57: 126700 | E57: 52 jaar | F57: 125234 | H57: 52 jaar | I57: 251934
B58: 53 jaar | C58: 127005 | E58: 53 jaar | F58: 125793 | H58: 53 jaar | I58: 252798
B59: 54 jaar | C59: 129050 | E59: 54 jaar | F59: 126935 | H59: 54 jaar | I59: 255985
B60: 55 jaar | C60: 130710 | E60: 55 jaar | F60: 129248 | H60: 55 jaar | I60: 259958
B61: 56 jaar | C61: 128205 | E61: 56 jaar | F61: 126880 | H61: 56 jaar | I61: 255085
B62: 57 jaar | C62: 124920 | E62: 57 jaar | F62: 124789 | H62: 57 jaar | I62: 249709
B63: 58 jaar | C63: 123328 | E63: 58 jaar | F63: 123348 | H63: 58 jaar | I63: 246676
B64: 59 jaar | C64: 119520 | E64: 59 jaar | F64: 119644 | H64: 59 jaar | I64: 239164
B65: 60 jaar | C65: 117917 | E65: 60 jaar | F65: 118246 | H65: 60 jaar | I65: 236163
B66: 61 jaar | C66: 114274 | E66: 61 jaar | F66: 114647 | H66: 61 jaar | I66: 228921
B67: 62 jaar | C67: 110971 | E67: 62 jaar | F67: 112104 | H67: 62 jaar | I67: 223075
B68: 63 jaar | C68: 108696 | E68: 63 jaar | F68: 109425 | H68: 63 jaar | I68: 218121
B69: 64 jaar | C69: 104550 | E69: 64 jaar | F69: 106968 | H69: 64 jaar | I69: 211518
B70: 65 jaar | C70: 102944 | E70: 65 jaar | F70: 104287 | H70: 65 jaar | I70: 207231
B71: 66 jaar | C71: 100458 | E71: 66 jaar | F71: 102165 | H71: 66 jaar | I71: 202623
B72: 67 jaar | C72: 99719 | E72: 67 jaar | F72: 101779 | H72: 67 jaar | I72: 201498
B73: 68 jaar | C73: 95529 | E73: 68 jaar | F73: 97168 | H73: 68 jaar | I73: 192697
B74: 69 jaar | C74: 94604 | E74: 69 jaar | F74: 97395 | H74: 69 jaar | I74: 191999
B75: 70 jaar | C75: 94637 | E75: 70 jaar | F75: 97695 | H75: 70 jaar | I75: 192332
B76: 71 jaar | C76: 96267 | E76: 71 jaar | F76: 99419 | H76: 71 jaar | I76: 195686
B77: 72 jaar | C77: 98898 | E77: 72 jaar | F77: 104012 | H77: 72 jaar | I77: 202910
B78: 73 jaar | C78: 100306 | E78: 73 jaar | F78: 105706 | H78: 73 jaar | I78: 206012
B79: 74 jaar | C79: 69437 | E79: 74 jaar | F79: 74842 | H79: 74 jaar | I79: 144279
B80: 75 jaar | C80: 70595 | E80: 75 jaar | F80: 77014 | H80: 75 jaar | I80: 147609
B81: 76 jaar | C81: 65129 | E81: 76 jaar | F81: 71692 | H81: 76 jaar | I81: 136821
B82: 77 jaar | C82: 57948 | E82: 77 jaar | F82: 65098 | H82: 77 jaar | I82: 123046
B83: 78 jaar | C83: 52936 | E83: 78 jaar | F83: 60684 | H83: 78 jaar | I83: 113620
B84: 79 jaar | C84: 51437 | E84: 79 jaar | F84: 60667 | H84: 79 jaar | I84: 112104
B85: 80 jaar | C85: 46393 | E85: 80 jaar | F85: 57163 | H85: 80 jaar | I85: 103556
B86: 81 jaar | C86: 42774 | E86: 81 jaar | F86: 53698 | H86: 81 jaar | I86: 96472
B87: 82 jaar | C87: 36940 | E87: 82 jaar | F87: 48359 | H87: 82 jaar | I87: 85299
B88: 83 jaar | C88: 33443 | E88: 83 jaar | F88: 45766 | H88: 83 jaar | I88: 79209
B89: 84 jaar | C89: 29458 | E89: 84 jaar | F89: 42062 | H89: 84 jaar | I89: 71520
B90: 85 jaar | C90: 25719 | E90: 85 jaar | F90: 38993 | H90: 85 jaar | I90: 64712
B91: 86 jaar | C91: 21808 | E91: 86 jaar | F91: 35196 | H91: 86 jaar | I91: 57004
B92: 87 jaar | C92: 19057 | E92: 87 jaar | F92: 32630 | H92: 87 jaar | I92: 51687
B93: 88 jaar | C93: 15723 | E93: 88 jaar | F93: 28597 | H93: 88 jaar | I93: 44320
B94: 89 jaar | C94: 12984 | E94: 89 jaar | F94: 25494 | H94: 89 jaar | I94: 38478
B95: 90 jaar | C95: 9910 | E95: 90 jaar | F95: 20728 | H95: 90 jaar | I95: 30638
B96: 91 jaar | C96: 7716 | E96: 91 jaar | F96: 17622 | H96: 91 jaar | I96: 25338
B97: 92 jaar | C97: 5847 | E97: 92 jaar | F97: 13884 | H97: 92 jaar | I97: 19731
B98: 93 jaar | C98: 4377 | E98: 93 jaar | F98: 11276 | H98: 93 jaar | I98: 15653
B99: 94 jaar | C99: 3134 | E99: 94 jaar | F99: 8624 | H99: 94 jaar | I99: 11758
B100: 95 jaar | C100: 2099 | E100: 95 jaar | F100: 6756 | H100: 95 jaar | I100: 8855
B101: 96 jaar | C101: 1514 | E101: 96 jaar | F101: 4848 | H101: 96 jaar | I101: 6362
B102: 97 jaar | C102: 926 | E102: 97 jaar | F102: 3448 | H102: 97 jaar | I102: 4374
B103: 98 jaar | C103: 554 | E103: 98 jaar | F103: 2279 | H103: 98 jaar | I103: 2833
B104: 99 jaar of ouder | C104: 734 | E104: 99 jaar of ouder | F104: 3555 | H104: 99 jaar of ouder | I104: 4289

Sheet Meerookmethode (hidden)
F1: component | G1: schatting aantal meegerookte sigaretten | H1: standaard error van schatting aantal meegerookte sigaretten | L1: number of pollutants available for comparison | M1: se to usein calculation combined se
B2: VUL DE CONCENTRATIEVERSCHILLEN IN IN DE CELLEN D5, D6. D7 | F2: NO2 | G2: =IF($D$5="","",AVERAGE(S11:S20)) -> 2.195557026 | H2: =IF($D$5="","",SQRT(1/16*($T$11^2+$T$14^2+$T$17^2+$T$20^2))) -> 0.3927392409 | L2: =COUNT(G2:G6) -> 2 | M2: =IF(H2="", "0",H2) -> 0.3927392409
B3: (LAAT LEEG ALS JE GEEN GEGEVENS HEBT)
F4: EC | G4: =IF($D$6="","",AVERAGE(S23:S32)) ->  | H4: =IF($D$6="","",SQRT(1/16*($T$23^2+$T$26^2+$T$29^2+$T$32^2))) ->  | M4: =IF(H4="", "0",H4) -> 0
B5: verschil in concentratie (µg/m3) | C5: NO2 | D5: =Rekenblad!B8 -> 10
F6: PM2.5 | G6: =IF($D$7="","",AVERAGE(S35:S44)) -> 2.560640529 | H6: =IF($D$7="","",SQRT(1/16*($T$35^2+$T$38^2+$T$41^2+$T$44^2))) -> 0.4310692733 | M6: =IF(H6="", "0",H6) -> 0.4310692733
C7: PM2.5 | D7: =Rekenblad!B7 -> 5
F8: overall | G8: =AVERAGE($G$2:$G$6) -> 2.378098778 | H8: =SQRT(1/($L2^2)*($M$2^2+$M$4^2+$M$6^2)) -> 0.2915753889
F9: NO2 en PM2.5 | G9: =AVERAGE(G2,G6) -> 2.378098778
B10: Blootstelling | C10: Relatief Risico / regressiecoefficient | D10: ondergrens 95% btbhti | E10: bovengrens 95% btbhi | F10: Toename in concentratie (ug/m3) waarop RR / regressiecoefficient voor luvo gebaseerd is: | G10: Aantal meegerookte sigaretten waarop de risicoschatting gebaseerd is: | H10: regressiecoefficient per 1 ug/m3 toename in concentratie | I10: ondergrens 95% btbhi van regressiecoefficient per 1 ug/m3 toename in concentratie | J10: bovengrens 95% btbhi van regressiecoefficient per 1 ug/m3 toename in concentratie | K10: standaard error van regressiecoefficient per 1 ug/m3 | L10: regressiecoefficient per meegerookte sigaret | M10: ondergrens 95% btbhi van regressiecoefficient per meegerookte sigaret | N10: bovengrens 95% btbhi van regressiecoefficient per meegerookte sigaret | O10: standaarderror van de regressiecoefficient per meegerookte sigaret | P10: Ratio X/Y (regressie coeff per 1 ug/m3 luvo/regressie coeff per sig) | Q10: Gecombineerde standaard error van de Ratio R | R10: veandering in concentratie (µg/m3) (WORDT STANDAARD OVERGENOMEN UIT CEL D5) | S10: Equivalent aantal meegerookte sigaretten | T10: standaarderror van equivalent aantal meegerookte sigaretten | U10: 2* standard error | V10: ondergrens (95% btbhi) aantal meegerookte sigaretten | W10: bovengrens (95% btbhi) aantal meegerookte sigaretten
A11: Laag geboortegewicht | B11: NO2 | C11: 1.016 | D11: 1 | E11: 1.03 | F11: 10 | H11: =LN(C11)/F11 -> 0.001587334916 | I11: =LN(D11)/F11 -> 0 | J11: =LN(E11)/F11 -> 0.002955880224 | K11: =($J11-$H11)/1.96 -> 0.0006982374023 | P11: =H11/L12 -> 0.03449833487 | Q11: =P11*SQRT((K11/H11)^2+(O12/L12)^2) -> 0.01878619577 | R11: =IF($D$5="","",$D$5) -> 10 | S11: =IF(R11="","",R11*P11) -> 0.3449833487 | T11: =IF(R11="","",R11*Q11) -> 0.1878619577 | U11: =IF(R11="","",R11*1.96*Q11) -> 0.3682094372 | V11: =IF(R11="","",S11-U11) -> -0.02322608851 | W11: =IF(R11="","",S11+U11) -> 0.7131927858
A12: Laag geboortegewicht | B12: ETS blootstelling ('meeroken') | C12: 1.38 | D12: 1.13 | E12: 1.69 | G12: 7 | L12: =LN(C12)/G12 -> 0.04601192845 | M12: =LN(D12)/G12 -> 0.01745966182 | N12: =LN(E12)/G12 -> 0.07496121842 | O12: =(N12-L12)/1.96 -> 0.0147700459
A14: Afname in longfunctie (FEV1) bij kinderen (%) | B14: NO2 | C14: 0.7 | D14: 0.4 | E14: 1 | F14: 10 | H14: =C14/F14 -> 0.07 | I14: =$D14/$F14 -> 0.04 | J14: =$E14/$F14 -> 0.1 | K14: =($J14-$H14)/1.96 -> 0.01530612245 | P14: =H14/L15 -> 0.45 | Q14: =P14*SQRT((K14/H14)^2+(O15/L15)^2) -> 0.1280835406 | R14: =IF($D$5="","",$D$5) -> 10 | S14: =IF(R14="","",R14*P14) -> 4.5 | T14: =IF(R14="","",R14*Q14) -> 1.280835406 | U14: =IF(R14="","",R14*1.96*Q14) -> 2.510437396 | V14: =IF(R14="","",S14-U14) -> 1.989562604 | W14: =IF(R14="","",S14+U14) -> 7.010437396
A15: Afname in longfunctie (FEV1) bij kinderen (%) | B15: ETS blootstelling ('meeroken') | C15: 1.4 | D15: 1 | E15: 1.9 | G15: 9 | L15: =C15/G15 -> 0.1555555556 | M15: =D15/G15 -> 0.1111111111 | N15: =E15/G15 -> 0.2111111111 | O15: =(N15-L15)/1.96 -> 0.0283446712
A17: Sterfte aan hart-en vaatziekten | B17: NO2 | C17: 1.089 | D17: 1.06 | E17: 1.12 | F17: 10 | H17: =LN(C17)/F17 -> 0.008525984395 | I17: =LN($D17)/$F17 -> 0.005826890812 | J17: =LN($E17)/$F17 -> 0.01133286853 | K17: =(J17-H17)/1.96 -> 0.001432083743 | P17: =H17/L18 -> 0.2496973672 | Q17: =P17*SQRT((K17/H17)^2+(O18/L18)^2) -> 0.05559510995 | R17: =IF($D$5="","",$D$5) -> 10 | S17: =IF(R17="","",R17*P17) -> 2.496973672 | T17: =IF(R17="","",R17*Q17) -> 0.5559510995 | U17: =IF(R17="","",R17*1.96*Q17) -> 1.089664155 | V17: =IF(R17="","",S17-U17) -> 1.407309517 | W17: =IF(R17="","",S17+U17) -> 3.586637827
A18: Sterfte aan hart-en vaatziekten | B18: ETS blootstelling ('meeroken') | C18: 1.27 | D18: 1.19 | E18: 1.36 | G18: 7 | L18: =LN(C18)/G18 -> 0.0341452715 | M18: =LN(D18)/G18 -> 0.02485047245 | N18: =LN(E18)/G18 -> 0.04392638568 | O18: =(N18-L18)/1.96 -> 0.004990364379
A20: Longkanker | B20: NO2 | C20: 1.04 | D20: 1.01 | E20: 1.076 | F20: 10 | H20: =LN(C20)/F20 -> 0.003922071315 | I20: =LN($D20)/$F20 -> 0.0009950330853 | J20: =LN($E20)/$F20 -> 0.007325046174 | K20: =(J20-H20)/1.96 -> 0.001736211663 | P20: =H20/L21 -> 0.1440271085 | Q20: =P20*SQRT((K20/H20)^2+(O21/L21)^2) -> 0.0694976765 | R20: =IF($D$5="","",$D$5) -> 10 | S20: =IF(R20="","",R20*P20) -> 1.440271085 | T20: =IF(R20="","",R20*Q20) -> 0.694976765 | U20: =IF(R20="","",R20*1.96*Q20) -> 1.362154459 | V20: =IF(R20="","",S20-U20) -> 0.07811662519 | W20: =IF(R20="","",S20+U20) -> 2.802425544
A21: Longkanker | B21: ETS blootstelling ('meeroken') | C21: 1.21 | D21: 1.13 | E21: 1.3 | G21: 7 | L21: =LN(C21)/G21 -> 0.02723147994 | M21: =LN(D21)/G21 -> 0.01745966182 | N21: =LN(E21)/G21 -> 0.03748060921 | O21: =(N21-L21)/1.96 -> 0.005229147584
A23: Laag geboortegewicht | B23: Roet | C23: 1 | D23: 1 | E23: 1 | F23: 1 | H23: =LN(C23)/F23 -> 0 | I23: =LN($D23)/$F23 -> 0 | J23: =LN($E23)/$F23 -> 0 | K23: =($J23-$H23)/1.96 -> 0 | P23: =H23/L24 -> 0 | Q23: =P23*SQRT((K23/H23)^2+(O24/L24)^2) ->  | R23: =IF($D$6="","",$D$6) ->  | S23: =IF(R23="","",R23*P23) ->  | T23: =IF(R23="","",R23*Q23) ->  | U23: =IF(R23="","",R23*1.96*Q23) ->  | V23: =IF(R23="","",S23-U23) ->  | W23: =IF(R23="","",S23+U23) -> 
A24: Laag geboortegewicht | B24: ETS blootstelling ('meeroken') | C24: 1.38 | D24: 1.13 | E24: 1.69 | G24: 7 | L24: =LN(C24)/G24 -> 0.04601192845 | M24: =LN(D24)/G24 -> 0.01745966182 | N24: =LN(E24)/G24 -> 0.07496121842 | O24: =(N24-L24)/1.96 -> 0.0147700459
A26: Afname in longfunctie (FEV1) bij kinderen (%) | B26: Roet | C26: 1 | D26: 1 | E26: 1 | F26: 1 | H26: =C26/F26 -> 1 | I26: =$D26/$F26 -> 1 | J26: =$E26/$F26 -> 1 | K26: =($J26-$H26)/1.96 -> 0 | P26: =H26/L27 -> 6.428571429 | Q26: =P26*SQRT((K26/H26)^2+(O27/L27)^2) -> 1.171386922 | R26: =IF($D$6="","",$D$6) ->  | S26: =IF(R26="","",R26*P26) ->  | T26: =IF(R26="","",R26*Q26) ->  | U26: =IF(R26="","",R26*1.96*Q26) ->  | V26: =IF(R26="","",S26-U26) ->  | W26: =IF(R26="","",S26+U26) -> 
A27: Afname in longfunctie (FEV1) bij kinderen (%) | B27: ETS blootstelling ('meeroken') | C27: 1.4 | D27: 1 | E27: 1.9 | G27: 9 | L27: =C27/G27 -> 0.1555555556 | M27: =D27/G27 -> 0.1111111111 | N27: =E27/G27 -> 0.2111111111 | O27: =(N27-L27)/1.96 -> 0.0283446712
A29: Sterfte aan hart-en vaatziekten | B29: Roet | C29: 1 | D29: 1 | E29: 1 | F29: 1 | H29: =LN(C29)/F29 -> 0 | I29: =LN($D29)/$F29 -> 0 | J29: =LN($E29)/$F29 -> 0 | K29: =($J29-$H29)/1.96 -> 0 | P29: =H29/L30 -> 0 | Q29: =P29*SQRT((K29/H29)^2+(O30/L30)^2) ->  | R29: =IF($D$6="","",$D$6) ->  | S29: =IF(R29="","",R29*P29) ->  | T29: =IF(R29="","",R29*Q29) ->  | U29: =IF(R29="","",R29*1.96*Q29) ->  | V29: =IF(R29="","",S29-U29) ->  | W29: =IF(R29="","",S29+U29) -> 
A30: Sterfte aan hart-en vaatziekten | B30: ETS blootstelling ('meeroken') | C30: 1.27 | D30: 1.19 | E30: 1.36 | G30: 7 | L30: =LN(C30)/G30 -> 0.0341452715 | M30: =LN(D30)/G30 -> 0.02485047245 | N30: =LN(E30)/G30 -> 0.04392638568 | O30: =(N30-L30)/1.96 -> 0.004990364379
A32: Longkanker | B32: Roet | C32: 1 | D32: 1 | E32: 1 | F32: 1 | H32: =LN(C32)/F32 -> 0 | I32: =LN($D32)/$F32 -> 0 | J32: =LN($E32)/$F32 -> 0 | K32: =($J32-$H32)/1.96 -> 0 | P32: =H32/L33 -> 0 | Q32: =P32*SQRT((K32/H32)^2+(O33/L33)^2) ->  | R32: =IF($D$6="","",$D$6) ->  | S32: =IF(R32="","",R32*P32) ->  | T32: =IF(R32="","",R32*Q32) ->  | U32: =IF(R32="","",R32*1.96*Q32) ->  | V32: =IF(R32="","",S32-U32) ->  | W32: =IF(R32="","",S32+U32) -> 
A33: Longkanker | B33: ETS blootstelling ('meeroken') | C33: 1.21 | D33: 1.13 | E33: 1.3 | G33: 7 | L33: =LN(C33)/G33 -> 0.02723147994 | M33: =LN(D33)/G33 -> 0.01745966182 | N33: =LN(E33)/G33 -> 0.03748060921 | O33: =(N33-L33)/1.96 -> 0.005229147584
A35: Laag geboortegewicht | B35: PM2.5 | C35: 1.081 | D35: 1.04 | E35: 1.12 | F35: 10 | H35: =LN(C35)/F35 -> 0.007788653866 | I35: =LN($D35)/$F35 -> 0.003922071315 | J35: =LN($E35)/$F35 -> 0.01133286853 | K35: =($J35-$H35)/1.96 -> 0.001808272788 | P35: =H35/L36 -> 0.169274667 | Q35: =P35*SQRT((K35/H35)^2+(O36/L36)^2) -> 0.06706050533 | R35: =IF($D$7="","",$D$7) -> 5 | S35: =IF(R35="","",R35*P35) -> 0.8463733349 | T35: =IF(R35="","",R35*Q35) -> 0.3353025267 | U35: =IF(R35="","",R35*1.96*Q35) -> 0.6571929523 | V35: =IF(R35="","",S35-U35) -> 0.1891803826 | W35: =IF(R35="","",S35+U35) -> 1.503566287
A36: Laag geboortegewicht | B36: ETS blootstelling ('meeroken') | C36: 1.38 | D36: 1.13 | E36: 1.69 | G36: 7 | L36: =LN(C36)/G36 -> 0.04601192845 | M36: =LN(D36)/G36 -> 0.01745966182 | N36: =LN(E36)/G36 -> 0.07496121842 | O36: =(N36-L36)/1.96 -> 0.0147700459
A38: Afname in longfunctie (FEV1) bij kinderen (%) | B38: PM2.5 | C38: 1.6 | D38: 1 | E38: 2.3 | F38: 10 | H38: =C38/F38 -> 0.16 | I38: =$D38/$F38 -> 0.1 | J38: =$E38/$F38 -> 0.23 | K38: =($J38-$H38)/1.96 -> 0.03571428571 | P38: =H38/L39 -> 1.028571429 | Q38: =P38*SQRT((K38/H38)^2+(O39/L39)^2) -> 0.2963770958 | R38: =IF($D$7="","",$D$7) -> 5 | S38: =IF(R38="","",R38*P38) -> 5.142857143 | T38: =IF(R38="","",R38*Q38) -> 1.481885479 | U38: =IF(R38="","",R38*1.96*Q38) -> 2.904495539 | V38: =IF(R38="","",S38-U38) -> 2.238361604 | W38: =IF(R38="","",S38+U38) -> 8.047352682
A39: Afname in longfunctie (FEV1) bij kinderen (%) | B39: ETS blootstelling ('meeroken') | C39: 1.4 | D39: 1 | E39: 1.9 | G39: 9 | L39: =C39/G39 -> 0.1555555556 | M39: =D39/G39 -> 0.1111111111 | N39: =E39/G39 -> 0.2111111111 | O39: =(N39-L39)/1.96 -> 0.0283446712
A41: Sterfte aan hart-en vaatziekten | B41: PM2.5 | C41: 1.11 | D41: 1.09 | E41: 1.14 | F41: 10 | H41: =LN(C41)/F41 -> 0.01043600153 | I41: =LN($D41)/$F41 -> 0.008617769624 | J41: =LN($E41)/$F41 -> 0.01310282624 | K41: =($J41-$H41)/1.96 -> 0.001360624851 | P41: =H41/L42 -> 0.3056353362 | Q41: =P41*SQRT((K41/H41)^2+(O42/L42)^2) -> 0.05985969575 | R41: =IF($D$7="","",$D$7) -> 5 | S41: =IF(R41="","",R41*P41) -> 1.528176681 | T41: =IF(R41="","",R41*Q41) -> 0.2992984788 | U41: =IF(R41="","",R41*1.96*Q41) -> 0.5866250184 | V41: =IF(R41="","",S41-U41) -> 0.9415516625 | W41: =IF(R41="","",S41+U41) -> 2.114801699
A42: Sterfte aan hart-en vaatziekten | B42: ETS blootstelling ('meeroken') | C42: 1.27 | D42: 1.19 | E42: 1.36 | G42: 7 | L42: =LN(C42)/G42 -> 0.0341452715 | M42: =LN(D42)/G42 -> 0.02485047245 | N42: =LN(E42)/G42 -> 0.04392638568 | O42: =(N42-L42)/1.96 -> 0.004990364379
A44: Longkanker | B44: PM2.5 | C44: 1.16 | D44: 1.09 | E44: 1.23 | F44: 10 | H44: =LN(C44)/F44 -> 0.01484200051 | I44: =LN($D44)/$F44 -> 0.008617769624 | J44: =LN($E44)/$F44 -> 0.02070141694 | K44: =($J44-$H44)/1.96 -> 0.002989498177 | P44: =H44/L45 -> 0.5450309914 | Q44: =P44*SQRT((K44/H44)^2+(O45/L45)^2) -> 0.151675912 | R44: =IF($D$7="","",$D$7) -> 5 | S44: =IF(R44="","",R44*P44) -> 2.725154957 | T44: =IF(R44="","",R44*Q44) -> 0.75837956 | U44: =IF(R44="","",R44*1.96*Q44) -> 1.486423938 | V44: =IF(R44="","",S44-U44) -> 1.23873102 | W44: =IF(R44="","",S44+U44) -> 4.211578895
A45: Longkanker | B45: ETS blootstelling ('meeroken') | C45: 1.21 | D45: 1.13 | E45: 1.3 | G45: 7 | L45: =LN(C45)/G45 -> 0.02723147994 | M45: =LN(D45)/G45 -> 0.01745966182 | N45: =LN(E45)/G45 -> 0.03748060921 | O45: =(N45-L45)/1.96 -> 0.005229147584
